{"text_format":"1","workbook":"xlsx","n_sheets":4,"sheets":["График отпусков 2020 год","Праздники","График Работы","Сотрудники"],"not_rendered":{"charts":1,"images":1,"macros":1,"external_links":0,"defined_names":2,"comments":0,"pivot_tables":0},"unopened":[],"bounds":{"document_bytes":16777216,"sheet_cells":100000,"rows_first":2000,"rows_last":500,"rows_between":2000,"halvings":0,"cell_chars":16384,"cell_head_chars":4096},"cells_cut":0,"cells_raw":0,"read":"whole","date_system":"1900"}

{"sheet":"График отпусков 2020 год","index":0,"n_rows":20,"n_cols":40,"rows_kept":20,"cut":false,"hidden":false,"merged":[[6,26,6,29],[6,19,6,21],[6,15,6,18],[6,3,6,6],[6,7,6,10],[6,11,6,14]]}
[null,null,"2020-01-01",null," -  дата начала года"]
[]
["Таблица и график отпусков с учетом официальных праздничных дней в 2020 году. При изменении данных в таблице меняется график. При открытии файла включайте макросы!"]
["Для добавления фамилий вставьте строку (строки) МЕЖДУ существующими строками таблицы. Фамилии желательно вносить сразу, не оставляя пустых строк"]
[]
[]
[null,null,null,"1-я часть ",null,null,null,"2-я часть ",null,null,null,"3-я часть ",null,null,null,"4-я часть ",null,null,null,"Всего дней",null,null,null,null,null,null,"Продолж. отпуска с учетом праздников \n(ячейки НЕ удалять, используются в графике!)"]
["Сотрудник","Профессия","Начало года","Столбец1","Дата начала1","Продолжи- тельность1, дней","Дата конца1","Столбец2","Дата начала2","Продолжи- тельность2, дней","Дата конца2","Столбец6","Дата начала3","Продолжи- тельность3, дней","Дата конца3","Столбец10","Дата начала4","Продолжи- тельность4, дней","Дата конца4","Положе- но за год","Израсхо- довано","Оста- лось",null,"Сегодня в отпуске:","Последний день отпуска:","Уходят завтра:","Часть1","Часть2","Часть3","Часть4"]
["Камкин А.А","машинист ш/п",{"$f":"$C$1","v":"2020-01-01"},{"$f":"IF(MONTH(E9)>2,E9-C9+2,E9-C9+1)","v":1},"2020-01-01",21,"2020-01-29",{"$f":"IF(AND(I9-$C9>0,Таблица1[[#This Row],[Продолжи- тельность1, дней]]>0),I9-$C9-D9-(Таблица1[[#This Row],[Дата конца1]]-Таблица1[[#This Row],[Дата начала1]]),\"\")","v":96},"2020-05-05",21,"2020-05-26",{"$f":"IF(AND(M9-$C9>0,Таблица1[[#This Row],[Продолжи- тельность1, дней]]>0,Таблица1[[#This Row],[Продолжи- тельность2, дней]]>0),M9-$C9-$D9-(Таблица1[[#This Row],[Дата конца1]]-Таблица1[[#This Row],[Дата начала1]])-$H9-(Таблица1[[#This Row],[Дата конца2]]-Таблица1[[#This Row],[Дата начала2]])-1,\"\")","v":122},"2020-09-26",21,{"$f":"M9+N9-1","v":"2020-10-16"},{"$f":"IF(AND(Q9-$C9>0,Таблица1[[#This Row],[Продолжи- тельность1, дней]]>0,Таблица1[[#This Row],[Продолжи- тельность2, дней]]>0,Таблица1[[#This Row],[Продолжи- тельность3, дней]]>0),Q9-$C9-$D9-(Таблица1[[#This Row],[Дата конца1]]-Таблица1[[#This Row],[Дата начала1]])-$H9-(Таблица1[[#This Row],[Дата конца2]]-Таблица1[[#This Row],[Дата начала2]])-L9-(Таблица1[[#This Row],[Дата конца3]]-Таблица1[[#This Row],[Дата начала3]])-2,\"\")","v":0},"2020-10-17",21,"2020-11-07",28,{"$f":"F9+J9+N9+R9","v":84},{"$f":"T9-U9","v":-56},null,{"$f":"IFERROR(INDEX(Таблица1[Сотрудник],SMALL(IF(\n(Таблица1[Дата начала1]<>\"\")*(Таблица1[Дата начала1]<=TODAY())*(Таблица1[Дата конца1]>=TODAY())+\n(Таблица1[Дата начала2]<>\"\")*(Таблица1[Дата начала2]<=TODAY())*(Таблица1[Дата конца2]>=TODAY())+\n(Таблица1[Дата начала3]<>\"\")*(Таблица1[Дата начала3]<=TODAY())*(Таблица1[Дата конца3]>=TODAY())+\n(Таблица1[Дата начала4]<>\"\")*(Таблица1[Дата начала4]<=TODAY())*(Таблица1[Дата конца4]>=TODAY()),\nROW(Таблица1[Сотрудник])-ROW(Таблица1[#Headers])),ROWS(X$9:X9))),\"-\")","v":"Камкин А.А"},{"$f":"IFERROR(INDEX(Таблица1[Сотрудник],SMALL(IF(\n(Таблица1[Дата начала1]<>\"\")*(Таблица1[Дата конца1]=TODAY())+\n(Таблица1[Дата начала2]<>\"\")*(Таблица1[Дата конца2]=TODAY())+\n(Таблица1[Дата начала3]<>\"\")*(Таблица1[Дата конца3]=TODAY())+\n(Таблица1[Дата начала4]<>\"\")*(Таблица1[Дата конца4]=TODAY()),\nROW(Таблица1[Сотрудник])-ROW(Таблица1[#Headers])),ROW()-ROW(Y$8))),\"-\")","v":"-"},{"$f":"IFERROR(INDEX(Таблица1[Сотрудник],SMALL(IF(\n(Таблица1[Дата начала1]<>\"\")*(Таблица1[Дата начала1]=TODAY()+1)+\n(Таблица1[Дата начала2]<>\"\")*(Таблица1[Дата начала2]=TODAY()+1)+\n(Таблица1[Дата начала3]<>\"\")*(Таблица1[Дата начала3]=TODAY()+1)+\n(Таблица1[Дата начала4]<>\"\")*(Таблица1[Дата начала4]=TODAY()+1),\nROW(Таблица1[Сотрудник])-ROW(Таблица1[#Headers])),ROW()-ROW(Z$8))),\"-\")","v":"-"},{"$f":"IF(Таблица1[[#This Row],[Дата конца1]]-Таблица1[[#This Row],[Дата начала1]]>0,Таблица1[[#This Row],[Дата конца1]]-Таблица1[[#This Row],[Дата начала1]]+1,\"\")","v":29},{"$f":"IF(Таблица1[[#This Row],[Дата конца2]]-Таблица1[[#This Row],[Дата начала2]]>0,Таблица1[[#This Row],[Дата конца2]]-Таблица1[[#This Row],[Дата начала2]]+1,\"\")","v":22},{"$f":"IF(Таблица1[[#This Row],[Дата конца3]]-Таблица1[[#This Row],[Дата начала3]]>0,Таблица1[[#This Row],[Дата конца3]]-Таблица1[[#This Row],[Дата начала3]]+1,\"\")","v":21},{"$f":"IF(Таблица1[[#This Row],[Дата конца4]]-Таблица1[[#This Row],[Дата начала4]]>0,Таблица1[[#This Row],[Дата конца4]]-Таблица1[[#This Row],[Дата начала4]]+1,\"\")","v":22}]
["Камкина К.В","машинист ш/п",{"$f":"$C$1","v":"2020-01-01"},{"$f":"IF(MONTH(E10)>2,E10-C10+2,E10-C10+1)","v":-43830},null,null,null,{"$f":"IF(AND(I10-$C10>0,Таблица1[[#This Row],[Продолжи- тельность1, дней]]>0),I10-$C10-D10-(Таблица1[[#This Row],[Дата конца1]]-Таблица1[[#This Row],[Дата начала1]]),\"\")","v":""},null,null,null,{"$f":"IF(AND(M10-$C10>0,Таблица1[[#This Row],[Продолжи- тельность1, дней]]>0,Таблица1[[#This Row],[Продолжи- тельность2, дней]]>0),M10-$C10-$D10-(Таблица1[[#This Row],[Дата конца1]]-Таблица1[[#This Row],[Дата начала1]])-$H10-(Таблица1[[#This Row],[Дата конца2]]-Таблица1[[#This Row],[Дата начала2]])-1,\"\")","v":""},null,null,null,{"$f":"IF(AND(Q10-$C10>0,Таблица1[[#This Row],[Продолжи- тельность1, дней]]>0,Таблица1[[#This Row],[Продолжи- тельность2, дней]]>0,Таблица1[[#This Row],[Продолжи- тельность3, дней]]>0),Q10-$C10-$D10-(Таблица1[[#This Row],[Дата конца1]]-Таблица1[[#This Row],[Дата начала1]])-$H10-(Таблица1[[#This Row],[Дата конца2]]-Таблица1[[#This Row],[Дата начала2]])-L10-(Таблица1[[#This Row],[Дата конца3]]-Таблица1[[#This Row],[Дата начала3]])-2,\"\")","v":""},null,null,null,28,{"$f":"F10+J10+N10+R10","v":0},{"$f":"T10-U10","v":28},null,{"$f":"IFERROR(INDEX(Таблица1[Сотрудник],SMALL(IF(\n(Таблица1[Дата начала1]<>\"\")*(Таблица1[Дата начала1]<=TODAY())*(Таблица1[Дата конца1]>=TODAY())+\n(Таблица1[Дата начала2]<>\"\")*(Таблица1[Дата начала2]<=TODAY())*(Таблица1[Дата конца2]>=TODAY())+\n(Таблица1[Дата начала3]<>\"\")*(Таблица1[Дата начала3]<=TODAY())*(Таблица1[Дата конца3]>=TODAY())+\n(Таблица1[Дата начала4]<>\"\")*(Таблица1[Дата начала4]<=TODAY())*(Таблица1[Дата конца4]>=TODAY()),\nROW(Таблица1[Сотрудник])-ROW(Таблица1[#Headers])),ROWS(X$9:X10))),\"-\")","v":"-"},{"$f":"IFERROR(INDEX(Таблица1[Сотрудник],SMALL(IF(\n(Таблица1[Дата начала1]<>\"\")*(Таблица1[Дата конца1]=TODAY())+\n(Таблица1[Дата начала2]<>\"\")*(Таблица1[Дата конца2]=TODAY())+\n(Таблица1[Дата начала3]<>\"\")*(Таблица1[Дата конца3]=TODAY())+\n(Таблица1[Дата начала4]<>\"\")*(Таблица1[Дата конца4]=TODAY()),\nROW(Таблица1[Сотрудник])-ROW(Таблица1[#Headers])),ROW()-ROW(Y$8))),\"-\")","v":"-"},{"$f":"IFERROR(INDEX(Таблица1[Сотрудник],SMALL(IF(\n(Таблица1[Дата начала1]<>\"\")*(Таблица1[Дата начала1]=TODAY()+1)+\n(Таблица1[Дата начала2]<>\"\")*(Таблица1[Дата начала2]=TODAY()+1)+\n(Таблица1[Дата начала3]<>\"\")*(Таблица1[Дата начала3]=TODAY()+1)+\n(Таблица1[Дата начала4]<>\"\")*(Таблица1[Дата начала4]=TODAY()+1),\nROW(Таблица1[Сотрудник])-ROW(Таблица1[#Headers])),ROW()-ROW(Z$8))),\"-\")","v":"-"},{"$f":"IF(Таблица1[[#This Row],[Дата конца1]]-Таблица1[[#This Row],[Дата начала1]]>0,Таблица1[[#This Row],[Дата конца1]]-Таблица1[[#This Row],[Дата начала1]]+1,\"\")","v":""},{"$f":"IF(Таблица1[[#This Row],[Дата конца2]]-Таблица1[[#This Row],[Дата начала2]]>0,Таблица1[[#This Row],[Дата конца2]]-Таблица1[[#This Row],[Дата начала2]]+1,\"\")","v":""},{"$f":"IF(Таблица1[[#This Row],[Дата конца3]]-Таблица1[[#This Row],[Дата начала3]]>0,Таблица1[[#This Row],[Дата конца3]]-Таблица1[[#This Row],[Дата начала3]]+1,\"\")","v":""},{"$f":"IF(Таблица1[[#This Row],[Дата конца4]]-Таблица1[[#This Row],[Дата начала4]]>0,Таблица1[[#This Row],[Дата конца4]]-Таблица1[[#This Row],[Дата начала4]]+1,\"\")","v":""}]
["Сотрудник 3","машинист ш/п","2020-01-01",-43830,null,null,null,{"$f":"IF(AND(I11-$C11>0,Таблица1[[#This Row],[Продолжи- тельность1, дней]]>0),I11-$C11-D11-(Таблица1[[#This Row],[Дата конца1]]-Таблица1[[#This Row],[Дата начала1]]),\"\")","v":""},null,null,null,{"$f":"IF(AND(M11-$C11>0,Таблица1[[#This Row],[Продолжи- тельность1, дней]]>0,Таблица1[[#This Row],[Продолжи- тельность2, дней]]>0),M11-$C11-$D11-(Таблица1[[#This Row],[Дата конца1]]-Таблица1[[#This Row],[Дата начала1]])-$H11-(Таблица1[[#This Row],[Дата конца2]]-Таблица1[[#This Row],[Дата начала2]])-1,\"\")","v":""},null,null,null,{"$f":"IF(AND(Q11-$C11>0,Таблица1[[#This Row],[Продолжи- тельность1, дней]]>0,Таблица1[[#This Row],[Продолжи- тельность2, дней]]>0,Таблица1[[#This Row],[Продолжи- тельность3, дней]]>0),Q11-$C11-$D11-(Таблица1[[#This Row],[Дата конца1]]-Таблица1[[#This Row],[Дата начала1]])-$H11-(Таблица1[[#This Row],[Дата конца2]]-Таблица1[[#This Row],[Дата начала2]])-L11-(Таблица1[[#This Row],[Дата конца3]]-Таблица1[[#This Row],[Дата начала3]])-2,\"\")","v":""},null,null,null,28,0,28,null,{"$f":"IFERROR(INDEX(Таблица1[Сотрудник],SMALL(IF(\n(Таблица1[Дата начала1]<>\"\")*(Таблица1[Дата начала1]<=TODAY())*(Таблица1[Дата конца1]>=TODAY())+\n(Таблица1[Дата начала2]<>\"\")*(Таблица1[Дата начала2]<=TODAY())*(Таблица1[Дата конца2]>=TODAY())+\n(Таблица1[Дата начала3]<>\"\")*(Таблица1[Дата начала3]<=TODAY())*(Таблица1[Дата конца3]>=TODAY())+\n(Таблица1[Дата начала4]<>\"\")*(Таблица1[Дата начала4]<=TODAY())*(Таблица1[Дата конца4]>=TODAY()),\nROW(Таблица1[Сотрудник])-ROW(Таблица1[#Headers])),ROWS(X$9:X11))),\"-\")","v":"-"},{"$f":"IFERROR(INDEX(Таблица1[Сотрудник],SMALL(IF(\n(Таблица1[Дата начала1]<>\"\")*(Таблица1[Дата конца1]=TODAY())+\n(Таблица1[Дата начала2]<>\"\")*(Таблица1[Дата конца2]=TODAY())+\n(Таблица1[Дата начала3]<>\"\")*(Таблица1[Дата конца3]=TODAY())+\n(Таблица1[Дата начала4]<>\"\")*(Таблица1[Дата конца4]=TODAY()),\nROW(Таблица1[Сотрудник])-ROW(Таблица1[#Headers])),ROW()-ROW(Y$8))),\"-\")","v":"-"},{"$f":"IFERROR(INDEX(Таблица1[Сотрудник],SMALL(IF(\n(Таблица1[Дата начала1]<>\"\")*(Таблица1[Дата начала1]=TODAY()+1)+\n(Таблица1[Дата начала2]<>\"\")*(Таблица1[Дата начала2]=TODAY()+1)+\n(Таблица1[Дата начала3]<>\"\")*(Таблица1[Дата начала3]=TODAY()+1)+\n(Таблица1[Дата начала4]<>\"\")*(Таблица1[Дата начала4]=TODAY()+1),\nROW(Таблица1[Сотрудник])-ROW(Таблица1[#Headers])),ROW()-ROW(Z$8))),\"-\")","v":"-"},{"$f":"IF(Таблица1[[#This Row],[Дата конца1]]-Таблица1[[#This Row],[Дата начала1]]>0,Таблица1[[#This Row],[Дата конца1]]-Таблица1[[#This Row],[Дата начала1]]+1,\"\")","v":""},{"$f":"IF(Таблица1[[#This Row],[Дата конца2]]-Таблица1[[#This Row],[Дата начала2]]>0,Таблица1[[#This Row],[Дата конца2]]-Таблица1[[#This Row],[Дата начала2]]+1,\"\")","v":""},{"$f":"IF(Таблица1[[#This Row],[Дата конца3]]-Таблица1[[#This Row],[Дата начала3]]>0,Таблица1[[#This Row],[Дата конца3]]-Таблица1[[#This Row],[Дата начала3]]+1,\"\")","v":""},{"$f":"IF(Таблица1[[#This Row],[Дата конца4]]-Таблица1[[#This Row],[Дата начала4]]>0,Таблица1[[#This Row],[Дата конца4]]-Таблица1[[#This Row],[Дата начала4]]+1,\"\")","v":""}]
["Сотрудник 4","машинист ш/п","2020-01-01",-43830,null,null,null,{"$f":"IF(AND(I12-$C12>0,Таблица1[[#This Row],[Продолжи- тельность1, дней]]>0),I12-$C12-D12-(Таблица1[[#This Row],[Дата конца1]]-Таблица1[[#This Row],[Дата начала1]]),\"\")","v":""},null,null,null,{"$f":"IF(AND(M12-$C12>0,Таблица1[[#This Row],[Продолжи- тельность1, дней]]>0,Таблица1[[#This Row],[Продолжи- тельность2, дней]]>0),M12-$C12-$D12-(Таблица1[[#This Row],[Дата конца1]]-Таблица1[[#This Row],[Дата начала1]])-$H12-(Таблица1[[#This Row],[Дата конца2]]-Таблица1[[#This Row],[Дата начала2]])-1,\"\")","v":""},null,null,null,{"$f":"IF(AND(Q12-$C12>0,Таблица1[[#This Row],[Продолжи- тельность1, дней]]>0,Таблица1[[#This Row],[Продолжи- тельность2, дней]]>0,Таблица1[[#This Row],[Продолжи- тельность3, дней]]>0),Q12-$C12-$D12-(Таблица1[[#This Row],[Дата конца1]]-Таблица1[[#This Row],[Дата начала1]])-$H12-(Таблица1[[#This Row],[Дата конца2]]-Таблица1[[#This Row],[Дата начала2]])-L12-(Таблица1[[#This Row],[Дата конца3]]-Таблица1[[#This Row],[Дата начала3]])-2,\"\")","v":""},null,null,null,28,0,28,null,{"$f":"IFERROR(INDEX(Таблица1[Сотрудник],SMALL(IF(\n(Таблица1[Дата начала1]<>\"\")*(Таблица1[Дата начала1]<=TODAY())*(Таблица1[Дата конца1]>=TODAY())+\n(Таблица1[Дата начала2]<>\"\")*(Таблица1[Дата начала2]<=TODAY())*(Таблица1[Дата конца2]>=TODAY())+\n(Таблица1[Дата начала3]<>\"\")*(Таблица1[Дата начала3]<=TODAY())*(Таблица1[Дата конца3]>=TODAY())+\n(Таблица1[Дата начала4]<>\"\")*(Таблица1[Дата начала4]<=TODAY())*(Таблица1[Дата конца4]>=TODAY()),\nROW(Таблица1[Сотрудник])-ROW(Таблица1[#Headers])),ROWS(X$9:X12))),\"-\")","v":"-"},{"$f":"IFERROR(INDEX(Таблица1[Сотрудник],SMALL(IF(\n(Таблица1[Дата начала1]<>\"\")*(Таблица1[Дата конца1]=TODAY())+\n(Таблица1[Дата начала2]<>\"\")*(Таблица1[Дата конца2]=TODAY())+\n(Таблица1[Дата начала3]<>\"\")*(Таблица1[Дата конца3]=TODAY())+\n(Таблица1[Дата начала4]<>\"\")*(Таблица1[Дата конца4]=TODAY()),\nROW(Таблица1[Сотрудник])-ROW(Таблица1[#Headers])),ROW()-ROW(Y$8))),\"-\")","v":"-"},{"$f":"IFERROR(INDEX(Таблица1[Сотрудник],SMALL(IF(\n(Таблица1[Дата начала1]<>\"\")*(Таблица1[Дата начала1]=TODAY()+1)+\n(Таблица1[Дата начала2]<>\"\")*(Таблица1[Дата начала2]=TODAY()+1)+\n(Таблица1[Дата начала3]<>\"\")*(Таблица1[Дата начала3]=TODAY()+1)+\n(Таблица1[Дата начала4]<>\"\")*(Таблица1[Дата начала4]=TODAY()+1),\nROW(Таблица1[Сотрудник])-ROW(Таблица1[#Headers])),ROW()-ROW(Z$8))),\"-\")","v":"-"},{"$f":"IF(Таблица1[[#This Row],[Дата конца1]]-Таблица1[[#This Row],[Дата начала1]]>0,Таблица1[[#This Row],[Дата конца1]]-Таблица1[[#This Row],[Дата начала1]]+1,\"\")","v":""},{"$f":"IF(Таблица1[[#This Row],[Дата конца2]]-Таблица1[[#This Row],[Дата начала2]]>0,Таблица1[[#This Row],[Дата конца2]]-Таблица1[[#This Row],[Дата начала2]]+1,\"\")","v":""},{"$f":"IF(Таблица1[[#This Row],[Дата конца3]]-Таблица1[[#This Row],[Дата начала3]]>0,Таблица1[[#This Row],[Дата конца3]]-Таблица1[[#This Row],[Дата начала3]]+1,\"\")","v":""},{"$f":"IF(Таблица1[[#This Row],[Дата конца4]]-Таблица1[[#This Row],[Дата начала4]]>0,Таблица1[[#This Row],[Дата конца4]]-Таблица1[[#This Row],[Дата начала4]]+1,\"\")","v":""}]
["Сотрудник 5","машинист ш/п","2020-01-01",-43830,null,null,null,{"$f":"IF(AND(I13-$C13>0,Таблица1[[#This Row],[Продолжи- тельность1, дней]]>0),I13-$C13-D13-(Таблица1[[#This Row],[Дата конца1]]-Таблица1[[#This Row],[Дата начала1]]),\"\")","v":""},null,null,null,{"$f":"IF(AND(M13-$C13>0,Таблица1[[#This Row],[Продолжи- тельность1, дней]]>0,Таблица1[[#This Row],[Продолжи- тельность2, дней]]>0),M13-$C13-$D13-(Таблица1[[#This Row],[Дата конца1]]-Таблица1[[#This Row],[Дата начала1]])-$H13-(Таблица1[[#This Row],[Дата конца2]]-Таблица1[[#This Row],[Дата начала2]])-1,\"\")","v":""},null,null,null,{"$f":"IF(AND(Q13-$C13>0,Таблица1[[#This Row],[Продолжи- тельность1, дней]]>0,Таблица1[[#This Row],[Продолжи- тельность2, дней]]>0,Таблица1[[#This Row],[Продолжи- тельность3, дней]]>0),Q13-$C13-$D13-(Таблица1[[#This Row],[Дата конца1]]-Таблица1[[#This Row],[Дата начала1]])-$H13-(Таблица1[[#This Row],[Дата конца2]]-Таблица1[[#This Row],[Дата начала2]])-L13-(Таблица1[[#This Row],[Дата конца3]]-Таблица1[[#This Row],[Дата начала3]])-2,\"\")","v":""},null,null,null,28,0,28,null,{"$f":"IFERROR(INDEX(Таблица1[Сотрудник],SMALL(IF(\n(Таблица1[Дата начала1]<>\"\")*(Таблица1[Дата начала1]<=TODAY())*(Таблица1[Дата конца1]>=TODAY())+\n(Таблица1[Дата начала2]<>\"\")*(Таблица1[Дата начала2]<=TODAY())*(Таблица1[Дата конца2]>=TODAY())+\n(Таблица1[Дата начала3]<>\"\")*(Таблица1[Дата начала3]<=TODAY())*(Таблица1[Дата конца3]>=TODAY())+\n(Таблица1[Дата начала4]<>\"\")*(Таблица1[Дата начала4]<=TODAY())*(Таблица1[Дата конца4]>=TODAY()),\nROW(Таблица1[Сотрудник])-ROW(Таблица1[#Headers])),ROWS(X$9:X13))),\"-\")","v":"-"},{"$f":"IFERROR(INDEX(Таблица1[Сотрудник],SMALL(IF(\n(Таблица1[Дата начала1]<>\"\")*(Таблица1[Дата конца1]=TODAY())+\n(Таблица1[Дата начала2]<>\"\")*(Таблица1[Дата конца2]=TODAY())+\n(Таблица1[Дата начала3]<>\"\")*(Таблица1[Дата конца3]=TODAY())+\n(Таблица1[Дата начала4]<>\"\")*(Таблица1[Дата конца4]=TODAY()),\nROW(Таблица1[Сотрудник])-ROW(Таблица1[#Headers])),ROW()-ROW(Y$8))),\"-\")","v":"-"},{"$f":"IFERROR(INDEX(Таблица1[Сотрудник],SMALL(IF(\n(Таблица1[Дата начала1]<>\"\")*(Таблица1[Дата начала1]=TODAY()+1)+\n(Таблица1[Дата начала2]<>\"\")*(Таблица1[Дата начала2]=TODAY()+1)+\n(Таблица1[Дата начала3]<>\"\")*(Таблица1[Дата начала3]=TODAY()+1)+\n(Таблица1[Дата начала4]<>\"\")*(Таблица1[Дата начала4]=TODAY()+1),\nROW(Таблица1[Сотрудник])-ROW(Таблица1[#Headers])),ROW()-ROW(Z$8))),\"-\")","v":"-"},{"$f":"IF(Таблица1[[#This Row],[Дата конца1]]-Таблица1[[#This Row],[Дата начала1]]>0,Таблица1[[#This Row],[Дата конца1]]-Таблица1[[#This Row],[Дата начала1]]+1,\"\")","v":""},{"$f":"IF(Таблица1[[#This Row],[Дата конца2]]-Таблица1[[#This Row],[Дата начала2]]>0,Таблица1[[#This Row],[Дата конца2]]-Таблица1[[#This Row],[Дата начала2]]+1,\"\")","v":""},{"$f":"IF(Таблица1[[#This Row],[Дата конца3]]-Таблица1[[#This Row],[Дата начала3]]>0,Таблица1[[#This Row],[Дата конца3]]-Таблица1[[#This Row],[Дата начала3]]+1,\"\")","v":""},{"$f":"IF(Таблица1[[#This Row],[Дата конца4]]-Таблица1[[#This Row],[Дата начала4]]>0,Таблица1[[#This Row],[Дата конца4]]-Таблица1[[#This Row],[Дата начала4]]+1,\"\")","v":""}]
["Сотрудник 6","машинист ш/п","2020-01-01",-43830,null,null,null,{"$f":"IF(AND(I14-$C14>0,Таблица1[[#This Row],[Продолжи- тельность1, дней]]>0),I14-$C14-D14-(Таблица1[[#This Row],[Дата конца1]]-Таблица1[[#This Row],[Дата начала1]]),\"\")","v":""},null,null,null,{"$f":"IF(AND(M14-$C14>0,Таблица1[[#This Row],[Продолжи- тельность1, дней]]>0,Таблица1[[#This Row],[Продолжи- тельность2, дней]]>0),M14-$C14-$D14-(Таблица1[[#This Row],[Дата конца1]]-Таблица1[[#This Row],[Дата начала1]])-$H14-(Таблица1[[#This Row],[Дата конца2]]-Таблица1[[#This Row],[Дата начала2]])-1,\"\")","v":""},null,null,null,{"$f":"IF(AND(Q14-$C14>0,Таблица1[[#This Row],[Продолжи- тельность1, дней]]>0,Таблица1[[#This Row],[Продолжи- тельность2, дней]]>0,Таблица1[[#This Row],[Продолжи- тельность3, дней]]>0),Q14-$C14-$D14-(Таблица1[[#This Row],[Дата конца1]]-Таблица1[[#This Row],[Дата начала1]])-$H14-(Таблица1[[#This Row],[Дата конца2]]-Таблица1[[#This Row],[Дата начала2]])-L14-(Таблица1[[#This Row],[Дата конца3]]-Таблица1[[#This Row],[Дата начала3]])-2,\"\")","v":""},null,null,null,28,{"$f":"F14+J14+N14+R14","v":0},28,null,{"$f":"IFERROR(INDEX(Таблица1[Сотрудник],SMALL(IF(\n(Таблица1[Дата начала1]<>\"\")*(Таблица1[Дата начала1]<=TODAY())*(Таблица1[Дата конца1]>=TODAY())+\n(Таблица1[Дата начала2]<>\"\")*(Таблица1[Дата начала2]<=TODAY())*(Таблица1[Дата конца2]>=TODAY())+\n(Таблица1[Дата начала3]<>\"\")*(Таблица1[Дата начала3]<=TODAY())*(Таблица1[Дата конца3]>=TODAY())+\n(Таблица1[Дата начала4]<>\"\")*(Таблица1[Дата начала4]<=TODAY())*(Таблица1[Дата конца4]>=TODAY()),\nROW(Таблица1[Сотрудник])-ROW(Таблица1[#Headers])),ROWS(X$9:X14))),\"-\")","v":"-"},{"$f":"IFERROR(INDEX(Таблица1[Сотрудник],SMALL(IF(\n(Таблица1[Дата начала1]<>\"\")*(Таблица1[Дата конца1]=TODAY())+\n(Таблица1[Дата начала2]<>\"\")*(Таблица1[Дата конца2]=TODAY())+\n(Таблица1[Дата начала3]<>\"\")*(Таблица1[Дата конца3]=TODAY())+\n(Таблица1[Дата начала4]<>\"\")*(Таблица1[Дата конца4]=TODAY()),\nROW(Таблица1[Сотрудник])-ROW(Таблица1[#Headers])),ROW()-ROW(Y$8))),\"-\")","v":"-"},{"$f":"IFERROR(INDEX(Таблица1[Сотрудник],SMALL(IF(\n(Таблица1[Дата начала1]<>\"\")*(Таблица1[Дата начала1]=TODAY()+1)+\n(Таблица1[Дата начала2]<>\"\")*(Таблица1[Дата начала2]=TODAY()+1)+\n(Таблица1[Дата начала3]<>\"\")*(Таблица1[Дата начала3]=TODAY()+1)+\n(Таблица1[Дата начала4]<>\"\")*(Таблица1[Дата начала4]=TODAY()+1),\nROW(Таблица1[Сотрудник])-ROW(Таблица1[#Headers])),ROW()-ROW(Z$8))),\"-\")","v":"-"},{"$f":"IF(Таблица1[[#This Row],[Дата конца1]]-Таблица1[[#This Row],[Дата начала1]]>0,Таблица1[[#This Row],[Дата конца1]]-Таблица1[[#This Row],[Дата начала1]]+1,\"\")","v":""},{"$f":"IF(Таблица1[[#This Row],[Дата конца2]]-Таблица1[[#This Row],[Дата начала2]]>0,Таблица1[[#This Row],[Дата конца2]]-Таблица1[[#This Row],[Дата начала2]]+1,\"\")","v":""},{"$f":"IF(Таблица1[[#This Row],[Дата конца3]]-Таблица1[[#This Row],[Дата начала3]]>0,Таблица1[[#This Row],[Дата конца3]]-Таблица1[[#This Row],[Дата начала3]]+1,\"\")","v":""},{"$f":"IF(Таблица1[[#This Row],[Дата конца4]]-Таблица1[[#This Row],[Дата начала4]]>0,Таблица1[[#This Row],[Дата конца4]]-Таблица1[[#This Row],[Дата начала4]]+1,\"\")","v":""}]
["Сотрудник 7","машинист ш/п","2020-01-01",-43830,null,null,null,{"$f":"IF(AND(I15-$C15>0,Таблица1[[#This Row],[Продолжи- тельность1, дней]]>0),I15-$C15-D15-(Таблица1[[#This Row],[Дата конца1]]-Таблица1[[#This Row],[Дата начала1]]),\"\")","v":""},null,null,null,{"$f":"IF(AND(M15-$C15>0,Таблица1[[#This Row],[Продолжи- тельность1, дней]]>0,Таблица1[[#This Row],[Продолжи- тельность2, дней]]>0),M15-$C15-$D15-(Таблица1[[#This Row],[Дата конца1]]-Таблица1[[#This Row],[Дата начала1]])-$H15-(Таблица1[[#This Row],[Дата конца2]]-Таблица1[[#This Row],[Дата начала2]])-1,\"\")","v":""},null,null,null,{"$f":"IF(AND(Q15-$C15>0,Таблица1[[#This Row],[Продолжи- тельность1, дней]]>0,Таблица1[[#This Row],[Продолжи- тельность2, дней]]>0,Таблица1[[#This Row],[Продолжи- тельность3, дней]]>0),Q15-$C15-$D15-(Таблица1[[#This Row],[Дата конца1]]-Таблица1[[#This Row],[Дата начала1]])-$H15-(Таблица1[[#This Row],[Дата конца2]]-Таблица1[[#This Row],[Дата начала2]])-L15-(Таблица1[[#This Row],[Дата конца3]]-Таблица1[[#This Row],[Дата начала3]])-2,\"\")","v":""},null,null,null,28,0,28,null,{"$f":"IFERROR(INDEX(Таблица1[Сотрудник],SMALL(IF(\n(Таблица1[Дата начала1]<>\"\")*(Таблица1[Дата начала1]<=TODAY())*(Таблица1[Дата конца1]>=TODAY())+\n(Таблица1[Дата начала2]<>\"\")*(Таблица1[Дата начала2]<=TODAY())*(Таблица1[Дата конца2]>=TODAY())+\n(Таблица1[Дата начала3]<>\"\")*(Таблица1[Дата начала3]<=TODAY())*(Таблица1[Дата конца3]>=TODAY())+\n(Таблица1[Дата начала4]<>\"\")*(Таблица1[Дата начала4]<=TODAY())*(Таблица1[Дата конца4]>=TODAY()),\nROW(Таблица1[Сотрудник])-ROW(Таблица1[#Headers])),ROWS(X$9:X15))),\"-\")","v":"-"},{"$f":"IFERROR(INDEX(Таблица1[Сотрудник],SMALL(IF(\n(Таблица1[Дата начала1]<>\"\")*(Таблица1[Дата конца1]=TODAY())+\n(Таблица1[Дата начала2]<>\"\")*(Таблица1[Дата конца2]=TODAY())+\n(Таблица1[Дата начала3]<>\"\")*(Таблица1[Дата конца3]=TODAY())+\n(Таблица1[Дата начала4]<>\"\")*(Таблица1[Дата конца4]=TODAY()),\nROW(Таблица1[Сотрудник])-ROW(Таблица1[#Headers])),ROW()-ROW(Y$8))),\"-\")","v":"-"},{"$f":"IFERROR(INDEX(Таблица1[Сотрудник],SMALL(IF(\n(Таблица1[Дата начала1]<>\"\")*(Таблица1[Дата начала1]=TODAY()+1)+\n(Таблица1[Дата начала2]<>\"\")*(Таблица1[Дата начала2]=TODAY()+1)+\n(Таблица1[Дата начала3]<>\"\")*(Таблица1[Дата начала3]=TODAY()+1)+\n(Таблица1[Дата начала4]<>\"\")*(Таблица1[Дата начала4]=TODAY()+1),\nROW(Таблица1[Сотрудник])-ROW(Таблица1[#Headers])),ROW()-ROW(Z$8))),\"-\")","v":"-"},{"$f":"IF(Таблица1[[#This Row],[Дата конца1]]-Таблица1[[#This Row],[Дата начала1]]>0,Таблица1[[#This Row],[Дата конца1]]-Таблица1[[#This Row],[Дата начала1]]+1,\"\")","v":""},{"$f":"IF(Таблица1[[#This Row],[Дата конца2]]-Таблица1[[#This Row],[Дата начала2]]>0,Таблица1[[#This Row],[Дата конца2]]-Таблица1[[#This Row],[Дата начала2]]+1,\"\")","v":""},{"$f":"IF(Таблица1[[#This Row],[Дата конца3]]-Таблица1[[#This Row],[Дата начала3]]>0,Таблица1[[#This Row],[Дата конца3]]-Таблица1[[#This Row],[Дата начала3]]+1,\"\")","v":""},{"$f":"IF(Таблица1[[#This Row],[Дата конца4]]-Таблица1[[#This Row],[Дата начала4]]>0,Таблица1[[#This Row],[Дата конца4]]-Таблица1[[#This Row],[Дата начала4]]+1,\"\")","v":""}]
["Сотрудник 8","машинист ш/п","2020-01-01",-43830,null,null,null,{"$f":"IF(AND(I16-$C16>0,Таблица1[[#This Row],[Продолжи- тельность1, дней]]>0),I16-$C16-D16-(Таблица1[[#This Row],[Дата конца1]]-Таблица1[[#This Row],[Дата начала1]]),\"\")","v":""},null,null,null,{"$f":"IF(AND(M16-$C16>0,Таблица1[[#This Row],[Продолжи- тельность1, дней]]>0,Таблица1[[#This Row],[Продолжи- тельность2, дней]]>0),M16-$C16-$D16-(Таблица1[[#This Row],[Дата конца1]]-Таблица1[[#This Row],[Дата начала1]])-$H16-(Таблица1[[#This Row],[Дата конца2]]-Таблица1[[#This Row],[Дата начала2]])-1,\"\")","v":""},null,null,null,{"$f":"IF(AND(Q16-$C16>0,Таблица1[[#This Row],[Продолжи- тельность1, дней]]>0,Таблица1[[#This Row],[Продолжи- тельность2, дней]]>0,Таблица1[[#This Row],[Продолжи- тельность3, дней]]>0),Q16-$C16-$D16-(Таблица1[[#This Row],[Дата конца1]]-Таблица1[[#This Row],[Дата начала1]])-$H16-(Таблица1[[#This Row],[Дата конца2]]-Таблица1[[#This Row],[Дата начала2]])-L16-(Таблица1[[#This Row],[Дата конца3]]-Таблица1[[#This Row],[Дата начала3]])-2,\"\")","v":""},null,null,null,28,0,28,null,{"$f":"IFERROR(INDEX(Таблица1[Сотрудник],SMALL(IF(\n(Таблица1[Дата начала1]<>\"\")*(Таблица1[Дата начала1]<=TODAY())*(Таблица1[Дата конца1]>=TODAY())+\n(Таблица1[Дата начала2]<>\"\")*(Таблица1[Дата начала2]<=TODAY())*(Таблица1[Дата конца2]>=TODAY())+\n(Таблица1[Дата начала3]<>\"\")*(Таблица1[Дата начала3]<=TODAY())*(Таблица1[Дата конца3]>=TODAY())+\n(Таблица1[Дата начала4]<>\"\")*(Таблица1[Дата начала4]<=TODAY())*(Таблица1[Дата конца4]>=TODAY()),\nROW(Таблица1[Сотрудник])-ROW(Таблица1[#Headers])),ROWS(X$9:X16))),\"-\")","v":"-"},{"$f":"IFERROR(INDEX(Таблица1[Сотрудник],SMALL(IF(\n(Таблица1[Дата начала1]<>\"\")*(Таблица1[Дата конца1]=TODAY())+\n(Таблица1[Дата начала2]<>\"\")*(Таблица1[Дата конца2]=TODAY())+\n(Таблица1[Дата начала3]<>\"\")*(Таблица1[Дата конца3]=TODAY())+\n(Таблица1[Дата начала4]<>\"\")*(Таблица1[Дата конца4]=TODAY()),\nROW(Таблица1[Сотрудник])-ROW(Таблица1[#Headers])),ROW()-ROW(Y$8))),\"-\")","v":"-"},{"$f":"IFERROR(INDEX(Таблица1[Сотрудник],SMALL(IF(\n(Таблица1[Дата начала1]<>\"\")*(Таблица1[Дата начала1]=TODAY()+1)+\n(Таблица1[Дата начала2]<>\"\")*(Таблица1[Дата начала2]=TODAY()+1)+\n(Таблица1[Дата начала3]<>\"\")*(Таблица1[Дата начала3]=TODAY()+1)+\n(Таблица1[Дата начала4]<>\"\")*(Таблица1[Дата начала4]=TODAY()+1),\nROW(Таблица1[Сотрудник])-ROW(Таблица1[#Headers])),ROW()-ROW(Z$8))),\"-\")","v":"-"},{"$f":"IF(Таблица1[[#This Row],[Дата конца1]]-Таблица1[[#This Row],[Дата начала1]]>0,Таблица1[[#This Row],[Дата конца1]]-Таблица1[[#This Row],[Дата начала1]]+1,\"\")","v":""},{"$f":"IF(Таблица1[[#This Row],[Дата конца2]]-Таблица1[[#This Row],[Дата начала2]]>0,Таблица1[[#This Row],[Дата конца2]]-Таблица1[[#This Row],[Дата начала2]]+1,\"\")","v":""},{"$f":"IF(Таблица1[[#This Row],[Дата конца3]]-Таблица1[[#This Row],[Дата начала3]]>0,Таблица1[[#This Row],[Дата конца3]]-Таблица1[[#This Row],[Дата начала3]]+1,\"\")","v":""},{"$f":"IF(Таблица1[[#This Row],[Дата конца4]]-Таблица1[[#This Row],[Дата начала4]]>0,Таблица1[[#This Row],[Дата конца4]]-Таблица1[[#This Row],[Дата начала4]]+1,\"\")","v":""}]
[null,null,{"$f":"$C$1","v":"2020-01-01"},{"$f":"IF(MONTH(E17)>2,E17-C17+2,E17-C17+1)","v":-43830},null,null,{"$f":"E17+F17-1","v":-1},{"$f":"IF(AND(I17-$C17>0,Таблица1[[#This Row],[Продолжи- тельность1, дней]]>0),I17-$C17-D17-(Таблица1[[#This Row],[Дата конца1]]-Таблица1[[#This Row],[Дата начала1]]),\"\")","v":""},null,null,{"$f":"I17+J17-1","v":-1},{"$f":"IF(AND(M17-$C17>0,Таблица1[[#This Row],[Продолжи- тельность1, дней]]>0,Таблица1[[#This Row],[Продолжи- тельность2, дней]]>0),M17-$C17-$D17-(Таблица1[[#This Row],[Дата конца1]]-Таблица1[[#This Row],[Дата начала1]])-$H17-(Таблица1[[#This Row],[Дата конца2]]-Таблица1[[#This Row],[Дата начала2]])-1,\"\")","v":""},null,null,{"$f":"M17+N17-1","v":-1},{"$f":"IF(AND(Q17-$C17>0,Таблица1[[#This Row],[Продолжи- тельность1, дней]]>0,Таблица1[[#This Row],[Продолжи- тельность2, дней]]>0,Таблица1[[#This Row],[Продолжи- тельность3, дней]]>0),Q17-$C17-$D17-(Таблица1[[#This Row],[Дата конца1]]-Таблица1[[#This Row],[Дата начала1]])-$H17-(Таблица1[[#This Row],[Дата конца2]]-Таблица1[[#This Row],[Дата начала2]])-L17-(Таблица1[[#This Row],[Дата конца3]]-Таблица1[[#This Row],[Дата начала3]])-2,\"\")","v":""},null,null,{"$f":"Q17+R17-1","v":-1},null,{"$f":"F17+J17+N17+R17","v":0},{"$f":"T17-U17","v":0},null,null,null,null,{"$f":"IF(Таблица1[[#This Row],[Дата конца1]]-Таблица1[[#This Row],[Дата начала1]]>0,Таблица1[[#This Row],[Дата конца1]]-Таблица1[[#This Row],[Дата начала1]]+1,\"\")","v":""},{"$f":"IF(Таблица1[[#This Row],[Дата конца2]]-Таблица1[[#This Row],[Дата начала2]]>0,Таблица1[[#This Row],[Дата конца2]]-Таблица1[[#This Row],[Дата начала2]]+1,\"\")","v":""},{"$f":"IF(Таблица1[[#This Row],[Дата конца3]]-Таблица1[[#This Row],[Дата начала3]]>0,Таблица1[[#This Row],[Дата конца3]]-Таблица1[[#This Row],[Дата начала3]]+1,\"\")","v":""},{"$f":"IF(Таблица1[[#This Row],[Дата конца4]]-Таблица1[[#This Row],[Дата начала4]]>0,Таблица1[[#This Row],[Дата конца4]]-Таблица1[[#This Row],[Дата начала4]]+1,\"\")","v":""},null,null,null,null,null,null,null,null,null,{"$f":"IF(Таблица1[[#This Row],[Дата конца3]]-Таблица1[[#This Row],[Дата начала3]]>0,Таблица1[[#This Row],[Дата конца3]]-Таблица1[[#This Row],[Дата начала3]],0)","v":0}]
[]
[]
[{"$f":"\"График отпусков на \"& YEAR(C1) & \" год\"","v":"График отпусков на 2020 год"}]

{"sheet":"Праздники","index":1,"n_rows":16,"n_cols":3,"rows_kept":16,"cut":false,"hidden":false,"merged":[]}
["Нераб. дни 2015",null,"Праздники"]
[]
["2015-01-01",null,"2020-01-01"]
["2015-01-02",null,"2020-01-02"]
["2015-01-03",null,"2020-01-03"]
["2015-01-04",null,"2020-01-04"]
["2015-01-05",null,"2020-01-05"]
["2015-01-06",null,"2020-01-06"]
["2015-01-07",null,"2020-01-07"]
["2015-01-08",null,"2020-01-08"]
["2015-02-23",null,"2020-02-23"]
["2015-03-08",null,"2020-03-08"]
["2015-05-01",null,"2020-05-01"]
["2015-05-09",null,"2020-05-09"]
["2015-06-12",null,"2020-06-12"]
["2015-11-04",null,"2020-11-04"]

{"sheet":"График Работы","index":2,"n_rows":18,"n_cols":38,"rows_kept":18,"cut":false,"hidden":false,"merged":[[5,4,6,4],[5,5,6,5],[5,6,6,6]]}
[null,"Год","Месяц"]
[null,2020,10,null,null,null,null,null,null,null,null,null,null,null,{"$f":"CONCATENATE(\"График работы на\",\" \",INDEX({\"Январь\";\"Февраль\";\"Март\";\"Апрель\";\"Май\";\"Июнь\";\"Июль\";\"Август\";\"Сентябрь\";\"Октябрь\";\"Ноябрь\";\"Декабрь\"},C2),\" \",B2,\" \",\"года\")","v":"График работы на Октябрь 2020 года"}]
[]
["Количество дней в месяце",{"$f":"DAY(EOMONTH(H6,0))","v":31}]
["Смещение",7,null,null,null,null,null,{"$f":"IF(COLUMN()-$B$5<=$B$4,1,0)","v":1},{"$f":"IF(COLUMN()-$B$5<=$B$4,1,0)","v":1},1,1,1,1,1,1,1,1,1,1,1,1,1,1,1,1,1,1,1,1,1,1,1,1,1,1,1,1,1]
[null,null,null,null,"№Бригады","Кол-во смен","Кол-во часов",{"$f":"DATE(B2,C2,1)","v":"2020-10-01"},{"$f":"IF(I5=1,H6+1,\"\")","v":"2020-10-02"},{"$f":"IF(J5=1,I6+1,\"\")","v":"2020-10-03"},"2020-10-04","2020-10-05","2020-10-06","2020-10-07","2020-10-08","2020-10-09","2020-10-10","2020-10-11","2020-10-12","2020-10-13","2020-10-14","2020-10-15","2020-10-16","2020-10-17","2020-10-18","2020-10-19","2020-10-20","2020-10-21","2020-10-22","2020-10-23","2020-10-24","2020-10-25","2020-10-26","2020-10-27","2020-10-28","2020-10-29","2020-10-30","2020-10-31"]
[null,null,null,null,null,null,null,{"$f":"H6","v":"2020-10-01"},{"$f":"I6","v":"2020-10-02"},"2020-10-03","2020-10-04","2020-10-05","2020-10-06","2020-10-07","2020-10-08","2020-10-09","2020-10-10","2020-10-11","2020-10-12","2020-10-13","2020-10-14","2020-10-15","2020-10-16","2020-10-17","2020-10-18","2020-10-19","2020-10-20","2020-10-21","2020-10-22","2020-10-23","2020-10-24","2020-10-25","2020-10-26","2020-10-27","2020-10-28","2020-10-29","2020-10-30","2020-10-31"]
[null,null,null,null,1,{"$f":"COUNTIF(H8:AL8,\"Д\")+COUNTIF(H8:AL8,\"Н\")","v":16},{"$f":"F8*12","v":192},{"$f":"IFERROR(IF(MOD(H$6,4)=3,\"О\",IF(MOD(H$6,4)=0,\"В\",IF(MOD(H$6,4)=1,\"Д\",IF(MOD(H$6,4)=2,\"Н\",\"\")))),\"\")","v":"Д"},"Н",{"$f":"IFERROR(IF(MOD(J$6,4)=3,\"О\",IF(MOD(J$6,4)=0,\"В\",IF(MOD(J$6,4)=1,\"Д\",IF(MOD(J$6,4)=2,\"Н\",\"\")))),\"\")","v":"О"},{"$f":"IFERROR(IF(MOD(K$6,4)=3,\"О\",IF(MOD(K$6,4)=0,\"В\",IF(MOD(K$6,4)=1,\"Д\",IF(MOD(K$6,4)=2,\"Н\",\"\")))),\"\")","v":"В"},{"$f":"IFERROR(IF(MOD(L$6,4)=3,\"О\",IF(MOD(L$6,4)=0,\"В\",IF(MOD(L$6,4)=1,\"Д\",IF(MOD(L$6,4)=2,\"Н\",\"\")))),\"\")","v":"Д"},"Н","О","В","Д","Н","О","В","Д","Н","О","В","Д","Н","О","В","Д","Н","О","В","Д","Н","О","В","Д","Н","О"]
[null,null,null,null,2,{"$f":"COUNTIF(H9:AL9,\"Д\")+COUNTIF(H9:AL9,\"Н\")","v":15},{"$f":"F9*12","v":180},{"$f":"IFERROR(IF(MOD(H$6,4)=2,\"О\",IF(MOD(H$6,4)=0,\"Д\",IF(MOD(H$6,4)=1,\"Н\",IF(MOD(H$6,4)=3,\"В\",\"\")))),\"\")","v":"Н"},"О",{"$f":"IFERROR(IF(MOD(J$6,4)=2,\"О\",IF(MOD(J$6,4)=0,\"Д\",IF(MOD(J$6,4)=1,\"Н\",IF(MOD(J$6,4)=3,\"В\",\"\")))),\"\")","v":"В"},{"$f":"IFERROR(IF(MOD(K$6,4)=2,\"О\",IF(MOD(K$6,4)=0,\"Д\",IF(MOD(K$6,4)=1,\"Н\",IF(MOD(K$6,4)=3,\"В\",\"\")))),\"\")","v":"Д"},"Н","О","В","Д","Н","О","В","Д","Н","О","В","Д","Н","О","В","Д","Н","О","В","Д","Н","О","В","Д","Н","О","В"]
[null,null,null,null,3,15,180,{"$f":"IFERROR(IF(MOD(H$6,4)=1,\"О\",IF(MOD(H$6,4)=2,\"В\",IF(MOD(H$6,4)=3,\"Д\",IF(MOD(H$6,4)=0,\"Н\",\"\")))),\"\")","v":"О"},{"$f":"IFERROR(IF(MOD(I$6,4)=1,\"О\",IF(MOD(I$6,4)=2,\"В\",IF(MOD(I$6,4)=3,\"Д\",IF(MOD(I$6,4)=0,\"Н\",\"\")))),\"\")","v":"В"},"Д","Н","О","В","Д","Н","О","В","Д","Н","О","В","Д","Н","О","В","Д","Н","О","В","Д","Н","О","В","Д","Н","О","В","Д"]
[null,null,null,null,4,16,192,{"$f":"IFERROR(IF(MOD(H$6,4)=0,\"О\",IF(MOD(H$6,4)=1,\"В\",IF(MOD(H$6,4)=2,\"Д\",IF(MOD(H$6,4)=3,\"Н\",\"\")))),\"\")","v":"В"},{"$f":"IFERROR(IF(MOD(I$6,4)=0,\"О\",IF(MOD(I$6,4)=1,\"В\",IF(MOD(I$6,4)=2,\"Д\",IF(MOD(I$6,4)=3,\"Н\",\"\")))),\"\")","v":"Д"},"Н","О","В","Д","Н","О","В","Д","Н","О","В","Д","Н","О","В","Д","Н","О","В","Д","Н","О","В","Д","Н","О","В","Д","Н"]
[]
[null,null,null,null,{"$f":"CONCATENATE(\"Сейчас работает бригада №\",\" \",MATCH(IF(AND(MOD(NOW(),1)>=--\"8:30\",MOD(NOW(),1)<=--\"20:30\"),\"Д\",\"Н\"),INDEX($H$8:$AL$11,0,MATCH(TODAY()-(MOD(NOW(),1)<--\"8:30\"),$H$6:$AL$6,0)),0))","v":"Сейчас работает бригада № 4"}]
[null,null,null,null,"На объекте №",null,{"$f":"Сотрудники!D4","v":1},{"$f":"Сотрудники!E10","v":"Сотрудник7"},null,null,null,{"$f":"Сотрудники!E11","v":"Сотрудник8"}]
[null,null,null,null,"На объекте №",null,{"$f":"Сотрудники!D12","v":2},{"$f":"Сотрудники!E18","v":"Сотрудник15"},null,null,null,{"$f":"Сотрудники!E19","v":"Сотрудник16"}]
[null,null,null,null,"На объекте №",null,{"$f":"Сотрудники!D20","v":3},{"$f":"Сотрудники!E26","v":"Сотрудник23"},null,null,null,{"$f":"Сотрудники!E27","v":"Сотрудник24"}]
[null,null,null,null,"На объекте №",null,{"$f":"Сотрудники!D28","v":4},{"$f":"Сотрудники!E34","v":"Сотрудник31"},null,null,null,{"$f":"Сотрудники!E35","v":"Сотрудник32"}]
[null,null,null,null,"На объекте №",null,{"$f":"Сотрудники!D36","v":5},{"$f":"Сотрудники!E42","v":"Сотрудник39"},null,null,null,{"$f":"Сотрудники!E43","v":"Сотрудник40"}]

{"sheet":"Сотрудники","index":3,"n_rows":43,"n_cols":10,"rows_kept":43,"cut":false,"hidden":false,"merged":[]}
[]
[]
[null,"№п.п","Бригада","Объект","Ф.И.О","Табельный №","Адрес проживания","Телефон","Дата рождения","Возраст"]
[null,1,1,1,"Сотрудник1",null,null,null,"1984-12-23",{"$f":"INT(YEARFRAC(I4,TODAY(),1))","v":35}]
[null,2,1,1,"Сотрудник2",null,null,null,"1984-12-23",35]
[null,3,2,1,"Сотрудник3",null,null,null,"1984-12-24",35]
[null,4,2,1,"Сотрудник4",null,null,null,"1984-12-25",35]
[null,5,3,1,"Сотрудник5",null,null,null,"1984-12-26",35]
[null,6,3,1,"Сотрудник6",null,null,null,"1984-12-27",35]
[null,7,4,1,"Сотрудник7",null,null,null,"1984-12-28",35]
[null,8,4,1,"Сотрудник8",null,null,null,"1984-12-29",35]
[null,9,1,2,"Сотрудник9",null,null,null,"1984-12-30",35]
[null,10,1,2,"Сотрудник10",null,null,null,"1984-12-31",35]
[null,11,2,2,"Сотрудник11",null,null,null,"1985-01-01",{"$f":"INT(YEARFRAC(I14,TODAY(),1))","v":35}]
[null,12,2,2,"Сотрудник12",null,null,null,"1985-01-02",35]
[null,13,3,2,"Сотрудник13",null,null,null,"1985-01-03",35]
[null,14,3,2,"Сотрудник14",null,null,null,"1985-01-04",35]
[null,15,4,2,"Сотрудник15",null,null,null,"1985-01-05",35]
[null,16,4,2,"Сотрудник16",null,null,null,"1985-01-06",35]
[null,17,1,3,"Сотрудник17",null,null,null,"1985-01-07",35]
[null,18,1,3,"Сотрудник18",null,null,null,"1985-01-08",35]
[null,19,2,3,"Сотрудник19",null,null,null,"1985-01-09",35]
[null,20,2,3,"Сотрудник20",null,null,null,"1985-01-10",35]
[null,21,3,3,"Сотрудник21",null,null,null,"1985-01-11",35]
[null,22,3,3,"Сотрудник22",null,null,null,"1985-01-12",35]
[null,23,4,3,"Сотрудник23",null,null,null,"1985-01-13",35]
[null,24,4,3,"Сотрудник24",null,null,null,"1985-01-14",35]
[null,25,1,4,"Сотрудник25",null,null,null,"1985-01-15",35]
[null,26,1,4,"Сотрудник26",null,null,null,"1985-01-16",35]
[null,27,2,4,"Сотрудник27",null,null,null,"1985-01-17",35]
[null,28,2,4,"Сотрудник28",null,null,null,"1985-01-18",35]
[null,29,3,4,"Сотрудник29",null,null,null,"1985-01-19",35]
[null,30,3,4,"Сотрудник30",null,null,null,"1985-01-20",35]
[null,31,4,4,"Сотрудник31",null,null,null,"1985-01-21",35]
[null,32,4,4,"Сотрудник32",null,null,null,"1985-01-22",35]
[null,33,1,5,"Сотрудник33",null,null,null,"1985-01-23",35]
[null,34,1,5,"Сотрудник34",null,null,null,"1985-01-24",35]
[null,35,2,5,"Сотрудник35",null,null,null,"1985-01-25",35]
[null,36,2,5,"Сотрудник36",null,null,null,"1985-01-26",35]
[null,37,3,5,"Сотрудник37",null,null,null,"1985-01-27",35]
[null,38,3,5,"Сотрудник38",null,null,null,"1985-01-28",35]
[null,39,4,5,"Сотрудник39",null,null,null,"1985-01-29",35]
[null,40,4,5,"Сотрудник40",null,null,null,"1985-01-30",35]